[Event "9th Bangabandhu Blitz Men 2021"]
[Site "Dhaka"]
[Date "2021.04.03"]
[Round "5.6"]
[White "Anata, Choudhury"]
[Black "Mohammed Abdul, Malek"]
[Result "1-0"]
[ECO "B01"]
[WhiteElo "2184"]
[BlackElo "2125"]
[Annotator "NA"]
[PlyCount "63"]
[EventDate "2021.04.02"]
[EventType "swiss"]
[EventCountry "BAN"]
[SourceTitle "playchess.com"]
[Source "ChessBase"]
[SourceQuality "1"]
[TimeControl "1500+10"]

1. e4 {[%emt 0:22:09]} d5 {[%emt 0:22:06]} 2. exd5 {[%emt 0:00:09]} Qxd5 {[%emt 0:00:09]} 3. Nf3 {[%emt 0:00:09]} Nf6 {[%emt 0:00:14]} 4. d4 {[%emt 0:00:10]} Bg4 {[%emt 0:00:24]} 5. Be2 {[%emt 0:00:10]} e6 {[%emt 0:00:11]} 6. O-O {[%emt 0:00:12]} Be7 {[%emt 0:00:09]} 7. c4 {[%emt 0:00:10]} Qd8 {[%emt 0:00:09]} 8. Nc3 {[%emt 0:00:10]} O-O {[%emt 0:00:10]} 9. Be3 {[%emt 0:00:10]} c6 {[%emt 0:00:09]} 10. h3 {[%emt 0:00:12]} Bh5 {[%emt 0:00:09]} 11. Qb3 {[%emt 0:00:10]} Qc8 {[%emt 0:00:22]} 12. Rfd1 {[%emt 0:00:11]} Nbd7 {[%emt 0:00:18]} 13. Rac1 {[%emt 0:00:10]} a5 {[%emt 0:00:11]} 14. a3 {[%emt 0:00:23]} Qc7 {[%emt 0:00:43]} 15. d5 {[%emt 0:01:10]} Nc5 {[%emt 0:00:24]} 16. Qa2 {[%emt 0:00:39]} a4 {[%emt 0:00:24]} 17. dxe6 {[%emt 0:00:24]} Nxe6 {[%emt 0:00:10]} 18. Nd4 {[%emt 0:00:17]} Nxd4 {[%emt 0:00:16]} 19. Bxd4 {[%emt 0:00:14]} Bg6 {[%emt 0:00:19]} 20. Bd3 {[%emt 0:00:15]} Rfd8 {[%emt 0:00:26]} 21. Bxg6 {[%emt 0:00:09]} hxg6 {[%emt 0:00:09]} 22. Qb1 {[%emt 0:00:10]} Qf4 {[%emt 0:00:19]} 23. Ne2 {[%emt 0:00:26]} Qf5 {[%emt 0:00:27]} 24. Bb6 {[%emt 0:00:17]} Rxd1+ {[%emt 0:00:20]} 25. Rxd1 {[%emt 0:00:09]} Qxb1 {[%emt 0:00:14]} 26. Rxb1 {[%emt 0:00:09]} Nd7 {[%emt 0:00:10]} 27. Bd4 {[%emt 0:00:11]} Bf6 {[%emt 0:00:21]} 28. Rd1 {[%emt 0:00:09]} Re8 {[%emt 0:00:12]} 29. Nc3 {[%emt 0:00:13]} Bxd4 {[%emt 0:00:15]} 30. Rxd4 {[%emt 0:00:33]} Nc5 {[%emt 0:00:10]} 31. Kf1 {[%emt 0:00:10]} Kf8 {[%emt 0:00:10]} 32. h4 {[%emt 0:00:10]} 1-0

[Event "9th Bangabandhu Blitz Men 2021"]
[Site "Dhaka"]
[Date "2021.04.03"]
[Round "5.7"]
[White "Ahmed, Sheikh Nasir"]
[Black "Asaduzzaman, Ahad"]
[Result "1/2-1/2"]
[ECO "C45"]
[WhiteElo "2176"]
[BlackElo "1742"]
[Annotator "NA"]
[PlyCount "114"]
[EventDate "2021.04.02"]
[EventType "swiss"]
[EventCountry "BAN"]
[SourceTitle "playchess.com"]
[Source "ChessBase"]
[SourceQuality "1"]
[TimeControl "1500+10"]

1. e4 {[%emt 0:22:11]} Nc6 {[%emt 0:22:08]} 2. d4 {[%emt 0:00:11]} e5 {[%emt 0:00:08]} 3. Nf3 {[%emt 0:00:09]} exd4 {[%emt 0:00:10]} 4. Nxd4 {[%emt 0:00:09]} Qf6 {[%emt 0:00:18]} 5. Nb5 {[%emt 0:00:09]} Qd8 {[%emt 0:00:19]} 6. N1c3 {[%emt 0:00:43]} a6 {[%emt 0:00:17]} 7. Nd4 {[%emt 0:00:09]} Bc5 {[%emt 0:00:14]} 8. Nxc6 {[%emt 0:00:15]} bxc6 {[%emt 0:00:11]} 9. Bc4 {[%emt 0:00:13]} Qf6 {[%emt 0:00:26]} 10. O-O {[%emt 0:00:15]} Nh6 {[%emt 0:00:14]} 11. e5 {[%emt 0:00:18]} Qh4 {[%emt 0:00:17]} 12. Be2 {[%emt 0:01:09]} O-O {[%emt 0:00:37]} 13. g3 {[%emt 0:00:10]} Qe7 {[%emt 0:00:11]} 14. Bxh6 {[%emt 0:00:12]} gxh6 {[%emt 0:00:09]} 15. Bd3 {[%emt 0:00:36]} Bb6 {[%emt 0:00:54]} 16. Qg4+ {[%emt 0:00:15]} Qg5 {[%emt 0:00:10]} 17. Qe4 {[%emt 0:00:13]} Qg7 {[%emt 0:00:13]} 18. Rae1 {[%emt 0:00:14]} Kh8 {[%emt 0:00:16]} 19. Qh4 {[%emt 0:00:10]} d5 {[%emt 0:00:21]} 20. exd6 {[%emt 0:00:14]} cxd6 {[%emt 0:00:12]} 21. Ne4 {[%emt 0:00:12]} d5 {[%emt 0:00:26]} 22. Nf6 {[%emt 0:00:09]} Bd8 {[%emt 0:00:10]} 23. Nh5 {[%emt 0:00:16]} Bxh4 {[%emt 0:00:17]} 24. Nxg7 {[%emt 0:00:09]} Kxg7 {[%emt 0:00:22]} 25. gxh4 Bh3 {[%emt 0:00:00]} 26. Re3 {[%emt 0:00:19]} Bxf1 {[%emt 0:00:08]} 27. Kxf1 {[%emt 0:00:10]} Rae8 {[%emt 0:00:09]} 28. Rg3+ {[%emt 0:00:09]} Kh8 {[%emt 0:00:09]} 29. Rf3 {[%emt 0:00:10]} Re6 {[%emt 0:00:11]} 30. Bxa6 {[%emt 0:00:09]} f6 {[%emt 0:00:10]} 31. Bd3 {[%emt 0:00:10]} Kg7 {[%emt 0:00:09]} 32. Rg3+ {[%emt 0:00:09]} Kh8 {[%emt 0:00:10]} 33. a4 {[%emt 0:00:09]} c5 {[%emt 0:00:10]} 34. b3 {[%emt 0:00:10]} Rfe8 {[%emt 0:00:10]} 35. Rf3 {[%emt 0:00:11]} Kg7 {[%emt 0:00:10]} 36. Rf5 {[%emt 0:00:09]} Re5 {[%emt 0:00:09]} 37. Rf3 {[%emt 0:00:09]} Rf8 {[%emt 0:00:10]} 38. Rg3+ {[%emt 0:00:10]} Kh8 {[%emt 0:00:09]} 39. Bb5 {[%emt 0:00:11]} Rg8 {[%emt 0:00:09]} 40. Rf3 {[%emt 0:00:09]} f5 {[%emt 0:00:10]} 41. Bd3 {[%emt 0:00:11]} Rf8 {[%emt 0:00:10]} 42. a5 {[%emt 0:00:10]} Kg7 {[%emt 0:00:10]} 43. a6 {[%emt 0:00:09]} Kf6 {[%emt 0:00:11]} 44. Rg3 {[%emt 0:00:11]} Rf7 {[%emt 0:00:10]} 45. Rg8 {[%emt 0:00:11]} Ra7 {[%emt 0:00:09]} 46. Rb8 {[%emt 0:00:13]} Re6 {[%emt 0:00:12]} 47. Rd8 {[%emt 0:00:12]} Ke5 {[%emt 0:00:09]} 48. Rf8 {[%emt 0:00:10]} Rf6 {[%emt 0:00:10]} 49. Rb8 {[%emt 0:00:11]} Kd4 {[%emt 0:00:10]} 50. Rd8 {[%emt 0:00:12]} f4 {[%emt 0:00:11]} 51. Kg2 {[%emt 0:00:11]} f3+ {[%emt 0:00:09]} 52. Kh3 {[%emt 0:00:10]} Rg7 {[%emt 0:00:12]} 53. Rb8 {[%emt 0:00:13]} Rf4 {[%emt 0:00:09]} 54. Rb7 {[%emt 0:00:17]} Rgg4 {[%emt 0:00:09]} 55. a7 {[%emt 0:00:09]} Rxh4+ {[%emt 0:00:26]} 56. Kg3 Rhg4+ {[%emt 0:00:00]} 57. Kh3 {[%emt 0:00:15]} Ke5 {[%emt 0:00:20]} 1/2-1/2

[Event "9th Bangabandhu Blitz Men 2021"]
[Site "Dhaka"]
[Date "2021.04.03"]
[Round "5.8"]
[White "Masum, Hossain"]
[Black "Rahman, Syed Mahfuzur"]
[Result "1-0"]
[ECO "A29"]
[WhiteElo "2061"]
[BlackElo "2206"]
[Annotator "NA"]
[PlyCount "111"]
[EventDate "2021.04.02"]
[EventType "swiss"]
[EventCountry "BAN"]
[SourceTitle "playchess.com"]
[Source "ChessBase"]
[SourceQuality "1"]
[TimeControl "1500+10"]

1. c4 {[%emt 0:22:06]} e5 {[%emt 0:22:08]} 2. Nc3 {[%emt 0:00:10]} Nf6 {[%emt 0:00:08]} 3. g3 {[%emt 0:00:10]} d5 {[%emt 0:00:09]} 4. cxd5 Nxd5 {[%emt 0:00:09]} 5. Bg2 {[%emt 0:00:19]} Nb6 {[%emt 0:00:09]} 6. d3 {[%emt 0:00:11]} Be7 {[%emt 0:00:09]} 7. Nf3 {[%emt 0:03:14]} Nc6 8. O-O {[%emt 0:00:00]} O-O {[%emt 0:00:17]} 9. a3 {[%emt 0:00:00]} a5 {[%emt 0:00:10]} 10. Be3 {[%emt 0:00:00]} Re8 {[%emt 0:00:10]} 11. Rc1 {[%emt 0:00:00]} Bf8 {[%emt 0:00:13]} 12. Ne4 {[%emt 0:00:00]} Nd4 {[%emt 0:00:29]} 13. Nc5 {[%emt 0:00:00]} c6 {[%emt 0:00:20]} 14. Rc3 {[%emt 0:00:00]} Rb8 {[%emt 0:00:48]} 15. b4 {[%emt 0:00:00]} axb4 {[%emt 0:00:39]} 16. axb4 {[%emt 0:00:00]} Bg4 {[%emt 0:00:10]} 17. Bxd4 {[%emt 0:00:18]} exd4 {[%emt 0:00:09]} 18. Ra3 {[%emt 0:00:10]} Nd7 {[%emt 0:00:35]} 19. Qc2 {[%emt 0:00:29]} Nxc5 {[%emt 0:01:18]} 20. bxc5 {[%emt 0:00:13]} Qd5 {[%emt 0:00:00]} 21. Rc1 {[%emt 0:00:12]} Ra8 {[%emt 0:00:00]} 22. Rb3 {[%emt 0:00:16]} Ra7 {[%emt 0:00:09]} 23. Rb4 {[%emt 0:00:10]} Bxf3 {[%emt 0:00:13]} 24. Bxf3 {[%emt 0:00:10]} Qe5 {[%emt 0:00:13]} 25. h4 {[%emt 0:00:21]} Rea8 {[%emt 0:00:09]} 26. Kg2 {[%emt 0:00:14]} g6 {[%emt 0:00:10]} 27. Qc4 {[%emt 0:00:13]} Ra5 {[%emt 0:00:15]} 28. Qxd4 {[%emt 0:00:13]} Qxd4 29. Rxd4 {[%emt 0:00:09]} Rxc5 {[%emt 0:00:21]} 30. Rb1 {[%emt 0:00:13]} Rb8 {[%emt 0:00:13]} 31. Rd7 {[%emt 0:00:10]} b6 {[%emt 0:00:11]} 32. Ra1 {[%emt 0:00:18]} b5 {[%emt 0:00:12]} 33. Raa7 {[%emt 0:00:10]} Rf5 {[%emt 0:00:10]} 34. Bxc6 {[%emt 0:00:10]} b4 {[%emt 0:00:09]} 35. e4 {[%emt 0:00:11]} Rf6 {[%emt 0:00:09]} 36. Bd5 {[%emt 0:00:09]} b3 {[%emt 0:00:10]} 37. Rxf7 {[%emt 0:00:14]} Rxf7 {[%emt 0:00:10]} 38. Bxf7+ {[%emt 0:00:27]} Kh8 39. Ra1 {[%emt 0:00:00]} b2 {[%emt 0:00:19]} 40. Rb1 {[%emt 0:00:05]} Bg7 {[%emt 0:00:10]} 41. f4 {[%emt 0:00:11]} Ra8 {[%emt 0:00:09]} 42. e5 {[%emt 0:00:09]} Ra1 {[%emt 0:00:10]} 43. Rxb2 {[%emt 0:00:09]} Bf8 {[%emt 0:00:13]} 44. Rb8 {[%emt 0:00:11]} Kg7 {[%emt 0:00:08]} 45. Bc4 {[%emt 0:00:11]} Rd1 {[%emt 0:00:10]} 46. Kf3 {[%emt 0:00:09]} Bb4 {[%emt 0:00:10]} 47. Rxb4 {[%emt 0:00:11]} Rf1+ {[%emt 0:00:09]} 48. Ke4 {[%emt 0:00:09]} Kh6 {[%emt 0:00:09]} 49. g4 {[%emt 0:00:10]} Rg1 {[%emt 0:00:09]} 50. Be6 {[%emt 0:00:12]} Kg7 {[%emt 0:00:11]} 51. Rb7+ {[%emt 0:00:10]} Kf8 {[%emt 0:00:09]} 52. d4 {[%emt 0:00:11]} h5 {[%emt 0:00:10]} 53. gxh5 {[%emt 0:00:12]} gxh5 {[%emt 0:00:09]} 54. f5 {[%emt 0:00:10]} Re1+ {[%emt 0:00:09]} 55. Kd5 {[%emt 0:00:09]} Rh1 {[%emt 0:00:10]} 56. f6 {[%emt 0:00:10]} 1-0

[Event "9th Bangabandhu Blitz Men 2021"]
[Site "Dhaka"]
[Date "2021.04.03"]
[Round "7.1"]
[White "Hossain, Enamul"]
[Black "Anata, Choudhury"]
[Result "1-0"]
[ECO "B50"]
[WhiteElo "2404"]
[BlackElo "2184"]
[Annotator "ChessBase"]
[PlyCount "95"]
[EventDate "2021.04.02"]
[EventType "swiss"]
[EventCountry "BAN"]
[SourceTitle "playchess.com"]
[Source "ChessBase"]
[SourceQuality "1"]
[TimeControl "1500+10"]

1. e4 {[%emt 0:22:07]} c5 {[%emt 0:22:07]} 2. Nf3 {[%emt 0:00:10]} d6 {[%emt 0:00:09]} 3. c3 {[%emt 0:00:08]} Nf6 {[%emt 0:00:10]} 4. h3 {[%emt 0:00:09]} Nbd7 {[%emt 0:00:10]} 5. Bd3 {[%emt 0:00:10]} b6 {[%emt 0:00:20]} 6. Bc2 {[%emt 0:00:12]} Bb7 {[%emt 0:00:10]} 7. Qe2 {[%emt 0:00:12]} Qc7 {[%emt 0:00:09]} 8. O-O {[%emt 0:00:10]} Rc8 {[%emt 0:00:11]} 9. d3 {[%emt 0:00:12]} g6 {[%emt 0:00:10]} 10. Re1 {[%emt 0:00:11]} Bg7 {[%emt 0:00:11]} 11. a4 {[%emt 0:00:12]} a6 {[%emt 0:00:09]} 12. Na3 {[%emt 0:00:10]} O-O {[%emt 0:03:04]} 13. Bf4 {[%emt 0:00:13]} Ne5 {[%emt 0:00:10]} 14. Nxe5 {[%emt 0:00:29]} dxe5 {[%emt 0:00:00]} 15. Be3 {[%emt 0:00:10]} Nd7 {[%emt 0:00:00]} 16. Bb3 {[%emt 0:00:12]} e6 {[%emt 0:00:00]} 17. Bc4 {[%emt 0:00:11]} Rfd8 {[%emt 0:00:00]} 18. Bg5 {[%emt 0:00:23]} Re8 {[%emt 0:00:00]} 19. Qd2 {[%emt 0:00:15]} Nb8 {[%emt 0:00:00]} 20. Nc2 {[%emt 0:00:11]} Nc6 {[%emt 0:00:00]} 21. h4 {[%emt 0:02:23]} Na5 {[%emt 0:00:00]} 22. Ba2 {[%emt 0:00:00]} b5 {[%emt 0:00:05]} 23. axb5 {[%emt 0:00:00]} axb5 {[%emt 0:00:09]} 24. h5 {[%emt 0:00:00]} c4 {[%emt 0:00:15]} 25. d4 {[%emt 0:00:00]} exd4 {[%emt 0:00:17]} 26. cxd4 {[%emt 0:00:00]} Nc6 {[%emt 0:00:11]} 27. Rad1 {[%emt 0:00:00]} Ra8 {[%emt 0:00:10]} 28. Bb1 {[%emt 0:00:00]} Qb6 {[%emt 0:00:20]} 29. hxg6 {[%emt 0:00:00]} hxg6 {[%emt 0:00:09]} 30. d5 {[%emt 0:00:00]} Ne5 {[%emt 0:00:19]} 31. dxe6 {[%emt 0:00:10]} Qxe6 {[%emt 0:00:23]} 32. Nb4 {[%emt 0:00:17]} Bf6 {[%emt 0:00:17]} 33. Nd5 {[%emt 0:00:12]} Bxg5 {[%emt 0:00:13]} 34. Qxg5 {[%emt 0:00:09]} Bxd5 {[%emt 0:00:09]} 35. Rxd5 {[%emt 0:00:16]} b4 {[%emt 0:00:16]} 36. f4 {[%emt 0:00:21]} Nd7 {[%emt 0:00:23]} 37. Red1 {[%emt 0:00:12]} Re7 {[%emt 0:00:13]} 38. Rd6 {[%emt 0:00:14]} Nf8 {[%emt 0:00:15]} 39. Rxe6 {[%emt 0:00:10]} Rxe6 {[%emt 0:00:09]} 40. f5 {[%emt 0:00:09]} Rb6 {[%emt 0:00:10]} 41. e5 {[%emt 0:00:13]} c3 {[%emt 0:00:12]} 42. bxc3 {[%emt 0:00:09]} bxc3 {[%emt 0:00:15]} 43. e6 {[%emt 0:00:11]} fxe6 {[%emt 0:00:05]} 44. fxg6 {[%emt 0:00:10]} Ra1 {[%emt 0:00:10]} 45. Qf6 {[%emt 0:00:19]} Rb7 {[%emt 0:00:12]} 46. Rf1 {[%emt 0:00:13]} Nxg6 {[%emt 0:00:13]} 47. Qxg6+ {[%emt 0:00:55]} Rg7 {[%emt 0:00:00]} 48. Qe8# 1-0

[Event "9th Bangabandhu Blitz Men 2021"]
[Site "Dhaka"]
[Date "2021.04.03"]
[Round "7.3"]
[White "Rahman, Taibur"]
[Black "Mohammad Fahad, Rahman"]
[Result "0-1"]
[ECO "D35"]
[WhiteElo "2189"]
[BlackElo "2321"]
[Annotator "ChessBase"]
[PlyCount "53"]
[EventDate "2021.04.02"]
[EventType "swiss"]
[EventCountry "BAN"]
[SourceTitle "playchess.com"]
[Source "ChessBase"]
[SourceQuality "1"]
[TimeControl "1500+10"]

1. d4 {[%emt 0:22:07]} d5 {[%emt 0:22:07]} 2. c4 {[%emt 0:00:09]} c6 {[%emt 0:00:09]} 3. Nf3 {[%emt 0:00:09]} Nf6 {[%emt 0:00:10]} 4. Nc3 {[%emt 0:00:09]} e6 {[%emt 0:00:09]} 5. Bg5 {[%emt 0:00:16]} Nbd7 {[%emt 0:03:15]} 6. cxd5 {[%emt 0:00:15]} exd5 {[%emt 0:00:00]} 7. e3 {[%emt 0:00:09]} h6 {[%emt 0:00:20]} 8. Bh4 {[%emt 0:00:12]} g5 {[%emt 0:00:00]} 9. Bg3 {[%emt 0:00:09]} Nh5 {[%emt 0:00:00]} 10. Bd3 {[%emt 0:00:17]} Nxg3 {[%emt 0:00:00]} 11. hxg3 {[%emt 0:00:10]} Bg7 {[%emt 0:00:40]} 12. Qc2 {[%emt 0:02:58]} Nb6 {[%emt 0:00:10]} 13. O-O-O {[%emt 0:00:00]} Be6 {[%emt 0:00:10]} 14. Kb1 {[%emt 0:00:00]} Qe7 {[%emt 0:00:10]} 15. Na4 {[%emt 0:00:00]} O-O-O {[%emt 0:00:00]} 16. Rc1 {[%emt 0:00:00]} Kb8 {[%emt 0:00:00]} 17. Nc5 {[%emt 0:00:00]} Bc8 {[%emt 0:00:00]} 18. Qb3 {[%emt 0:00:00]} h5 {[%emt 0:00:00]} 19. a4 {[%emt 0:00:00]} Ka8 {[%emt 0:00:00]} 20. a5 {[%emt 0:00:00]} Nd7 {[%emt 0:00:00]} 21. a6 {[%emt 0:01:30]} b6 {[%emt 0:00:00]} 22. Nxd7 {[%emt 0:00:00]} Bxd7 {[%emt 0:00:00]} 23. Rhe1 {[%emt 0:00:20]} f5 {[%emt 0:01:30]} 24. Rc2 {[%emt 0:00:10]} h4 {[%emt 0:00:00]} 25. gxh4 {[%emt 0:00:00]} g4 {[%emt 0:00:00]} 26. Nd2 {[%emt 0:00:11]} Bxd4 {[%emt 0:00:00]} 27. Rec1 {[%emt 0:00:19]} 0-1

[Event "9th Bangabandhu Blitz Men 2021"]
[Site "Dhaka"]
[Date "2021.04.03"]
[Round "7.4"]
[White "Mehdi Hasan Parag"]
[Black "Reefat, Bin-Sattar"]
[Result "0-1"]
[ECO "C11"]
[WhiteElo "2192"]
[BlackElo "2401"]
[Annotator "ChessBase"]
[PlyCount "88"]
[EventDate "2021.04.02"]
[EventType "swiss"]
[EventCountry "BAN"]
[SourceTitle "playchess.com"]
[Source "ChessBase"]
[SourceQuality "1"]
[TimeControl "1500+10"]

1. e4 {[%emt 0:22:08]} e6 {[%emt 0:22:07]} 2. d4 {[%emt 0:00:10]} d5 {[%emt 0:00:09]} 3. Nc3 {[%emt 0:00:10]} Nf6 {[%emt 0:00:09]} 4. e5 {[%emt 0:00:11]} Nfd7 {[%emt 0:00:09]} 5. f4 {[%emt 0:03:11]} c5 6. Nf3 {[%emt 0:00:00]} Nc6 {[%emt 0:00:17]} 7. Be3 {[%emt 0:00:00]} Be7 {[%emt 0:00:11]} 8. dxc5 {[%emt 0:00:00]} Nxc5 {[%emt 0:00:53]} 9. Qd2 {[%emt 0:00:00]} a6 {[%emt 0:00:34]} 10. Nd4 {[%emt 0:00:00]} Bd7 {[%emt 0:00:24]} 11. O-O-O {[%emt 0:00:00]} Nxd4 {[%emt 0:00:30]} 12. Bxd4 {[%emt 0:00:00]} Rc8 {[%emt 0:00:09]} 13. Kb1 {[%emt 0:00:00]} b5 {[%emt 0:00:11]} 14. Bd3 {[%emt 0:00:00]} b4 {[%emt 0:00:22]} 15. Ne2 {[%emt 0:00:00]} Qa5 {[%emt 0:00:29]} 16. g4 {[%emt 0:00:13]} Nxd3 {[%emt 0:00:28]} 17. cxd3 {[%emt 0:00:13]} h5 {[%emt 0:00:11]} 18. h3 {[%emt 0:00:15]} Bb5 {[%emt 0:00:16]} 19. Rc1 {[%emt 0:00:09]} Kd7 {[%emt 0:00:15]} 20. f5 {[%emt 0:00:20]} hxg4 {[%emt 0:00:12]} 21. hxg4 {[%emt 0:00:15]} Rxc1+ {[%emt 0:00:10]} 22. Rxc1 {[%emt 0:00:18]} Rh2 {[%emt 0:00:14]} 23. Qe3 {[%emt 0:00:13]} Qa4 {[%emt 0:00:12]} 24. b3 {[%emt 0:00:19]} Qa5 {[%emt 0:00:13]} 25. fxe6+ {[%emt 0:00:16]} fxe6 {[%emt 0:00:10]} 26. Bb2 {[%emt 0:00:18]} Ke8 {[%emt 0:00:12]} 27. Nd4 {[%emt 0:00:16]} Bd7 {[%emt 0:00:11]} 28. Nf3 {[%emt 0:00:29]} Rh3 {[%emt 0:00:12]} 29. Qf4 {[%emt 0:00:12]} Qb5 {[%emt 0:00:11]} 30. Rd1 {[%emt 0:00:14]} Qc6 {[%emt 0:00:12]} 31. Nd4 {[%emt 0:00:10]} Qb7 {[%emt 0:00:10]} 32. Qf1 {[%emt 0:00:11]} Rh8 {[%emt 0:00:10]} 33. Qf2 {[%emt 0:00:11]} Qb6 {[%emt 0:00:12]} 34. Rf1 {[%emt 0:00:10]} Rf8 {[%emt 0:00:10]} 35. Qe2 {[%emt 0:00:09]} Rxf1+ 36. Qxf1 {[%emt 0:00:19]} Bc5 {[%emt 0:00:19]} 37. Nc2 {[%emt 0:00:02]} Bb5 {[%emt 0:00:08]} 38. Qh3 {[%emt 0:00:11]} Be7 {[%emt 0:00:11]} 39. Qh5+ {[%emt 0:00:10]} Kd7 {[%emt 0:00:09]} 40. Qh3 {[%emt 0:00:13]} Qg1+ {[%emt 0:00:10]} 41. Bc1 {[%emt 0:00:10]} Qd1 {[%emt 0:00:09]} 42. d4 {[%emt 0:00:14]} Bg5 {[%emt 0:00:19]} 43. Ne3 {[%emt 0:00:10]} Bd3+ {[%emt 0:00:10]} 44. Kb2 {[%emt 0:00:10]} Bxe3 {[%emt 0:00:10]} 0-1

[Event "9th Bangabandhu Blitz Men 2021"]
[Site "Dhaka"]
[Date "2021.04.03"]
[Round "7.5"]
[White "Masum, Hossain"]
[Black "Islam, Khandaker Aminul"]
[Result "0-1"]
[ECO "E22"]
[WhiteElo "2061"]
[BlackElo "2210"]
[Annotator "ChessBase"]
[PlyCount "61"]
[EventDate "2021.04.02"]
[EventType "swiss"]
[EventCountry "BAN"]
[SourceTitle "playchess.com"]
[Source "ChessBase"]
[SourceQuality "1"]
[TimeControl "1500+10"]

1. c4 {[%emt 0:22:07]} Nf6 {[%emt 0:22:07]} 2. Nc3 {[%emt 0:00:10]} e6 {[%emt 0:00:09]} 3. d4 {[%emt 0:00:13]} Bb4 {[%emt 0:00:10]} 4. Qb3 {[%emt 0:03:10]} c5 {[%emt 0:00:10]} 5. Nf3 {[%emt 0:00:10]} Na6 {[%emt 0:03:14]} 6. e3 {[%emt 0:00:10]} O-O {[%emt 0:00:00]} 7. Bd3 {[%emt 0:00:00]} d5 {[%emt 0:00:00]} 8. a3 {[%emt 0:00:20]} Ba5 {[%emt 0:00:00]} 9. O-O {[%emt 0:00:10]} cxd4 {[%emt 0:00:00]} 10. exd4 {[%emt 0:00:00]} dxc4 {[%emt 0:00:50]} 11. Bxc4 {[%emt 0:00:20]} Nc7 {[%emt 0:00:00]} 12. Bg5 {[%emt 0:00:00]} h6 {[%emt 0:00:00]} 13. Bh4 {[%emt 0:00:20]} Bxc3 {[%emt 0:00:00]} 14. bxc3 {[%emt 0:00:00]} b6 {[%emt 0:00:00]} 15. Ne5 {[%emt 0:00:00]} Bb7 {[%emt 0:00:50]} 16. Rae1 {[%emt 0:00:00]} Ncd5 {[%emt 0:00:00]} 17. f4 {[%emt 0:00:00]} a6 {[%emt 0:00:00]} 18. f5 {[%emt 0:00:50]} b5 19. Bd3 {[%emt 0:00:00]} exf5 {[%emt 0:00:00]} 20. Rxf5 {[%emt 0:00:20]} Qc7 {[%emt 0:00:50]} 21. Bxf6 {[%emt 0:00:00]} Nxf6 {[%emt 0:00:00]} 22. Rxf6 {[%emt 0:00:00]} gxf6 {[%emt 0:00:00]} 23. Ng4 {[%emt 0:00:00]} Qf4 {[%emt 0:00:00]} 24. Qd1 {[%emt 0:00:12]} Kh8 {[%emt 0:00:11]} 25. Rf1 {[%emt 0:00:10]} Qg5 {[%emt 0:00:08]} 26. Rxf6 {[%emt 0:00:10]} h5 {[%emt 0:00:16]} 27. Rf5 {[%emt 0:00:26]} Qg6 {[%emt 0:00:27]} 28. Rxh5+ {[%emt 0:00:13]} Qxh5 {[%emt 0:00:10]} 29. Qe2 {[%emt 0:00:16]} Qg5 {[%emt 0:00:10]} 30. h4 {[%emt 0:00:10]} Qg7 {[%emt 0:00:10]} 31. Qe3 {[%emt 0:00:13]} 0-1

[Event "9th Bangabandhu Blitz Men 2021"]
[Site "Dhaka"]
[Date "2021.04.03"]
[Round "7.7"]
[White "Hossain, Delwar"]
[Black "Mohammed Abdul, Malek"]
[Result "0-1"]
[ECO "B50"]
[WhiteElo "2054"]
[BlackElo "2125"]
[Annotator "ChessBase"]
[PlyCount "78"]
[EventDate "2021.04.02"]
[EventType "swiss"]
[EventCountry "BAN"]
[SourceTitle "playchess.com"]
[Source "ChessBase"]
[SourceQuality "1"]
[TimeControl "1500+10"]

1. e4 {[%emt 0:22:08]} c5 {[%emt 0:22:07]} 2. Nf3 {[%emt 0:00:09]} d6 {[%emt 0:00:08]} 3. Bc4 {[%emt 0:00:09]} Nf6 {[%emt 0:00:15]} 4. e5 {[%emt 0:00:09]} dxe5 {[%emt 0:00:12]} 5. Nxe5 {[%emt 0:00:09]} e6 {[%emt 0:00:09]} 6. O-O {[%emt 0:00:17]} a6 {[%emt 0:00:09]} 7. a4 {[%emt 0:00:12]} Bd6 {[%emt 0:00:11]} 8. f4 {[%emt 0:03:07]} Bxe5 {[%emt 0:00:32]} 9. fxe5 {[%emt 0:00:00]} Qd4+ {[%emt 0:00:09]} 10. Kh1 {[%emt 0:00:00]} Ng4 {[%emt 0:00:09]} 11. Qe2 {[%emt 0:00:30]} Nxe5 {[%emt 0:00:17]} 12. Na3 {[%emt 0:00:00]} Nbc6 {[%emt 0:00:17]} 13. c3 {[%emt 0:00:00]} Qh4 {[%emt 0:00:10]} 14. d4 {[%emt 0:00:00]} cxd4 {[%emt 0:00:10]} 15. Rf4 {[%emt 0:00:00]} Qe7 {[%emt 0:00:22]} 16. cxd4 {[%emt 0:00:00]} Ng6 {[%emt 0:00:10]} 17. Re4 {[%emt 0:00:00]} O-O {[%emt 0:00:13]} 18. d5 {[%emt 0:00:00]} f5 {[%emt 0:00:28]} 19. Re3 {[%emt 0:00:00]} Nd4 {[%emt 0:00:13]} 20. Qf1 {[%emt 0:00:00]} b5 {[%emt 0:00:27]} 21. axb5 {[%emt 0:00:00]} axb5 {[%emt 0:00:08]} 22. Bxb5 {[%emt 0:00:00]} Nxb5 {[%emt 0:00:19]} 23. Qxb5 {[%emt 0:00:13]} f4 {[%emt 0:00:12]} 24. Re1 {[%emt 0:00:18]} f3 {[%emt 0:00:09]} 25. gxf3 {[%emt 0:00:14]} Rxf3 {[%emt 0:00:16]} 26. Qc6 {[%emt 0:00:15]} Bb7 {[%emt 0:00:26]} 27. Qc4 {[%emt 0:00:48]} Bxd5 {[%emt 0:00:29]} 28. Qxd5 {[%emt 0:00:09]} exd5 {[%emt 0:00:09]} 29. Rxe7 {[%emt 0:00:10]} Nxe7 {[%emt 0:00:10]} 30. Bg5 {[%emt 0:00:15]} Nf5 {[%emt 0:00:12]} 31. Rd1 {[%emt 0:00:14]} h6 {[%emt 0:00:09]} 32. Bc1 {[%emt 0:00:24]} Rc8 {[%emt 0:00:09]} 33. Kg2 {[%emt 0:00:14]} Nh4+ {[%emt 0:00:12]} 34. Kg1 {[%emt 0:00:10]} d4 {[%emt 0:00:13]} 35. Nb5 {[%emt 0:00:16]} d3 {[%emt 0:00:15]} 36. Nc3 {[%emt 0:00:10]} Ra8 {[%emt 0:00:16]} 37. Bd2 {[%emt 0:00:16]} Rf7 {[%emt 0:00:11]} 38. Be1 {[%emt 0:00:15]} Nf3+ {[%emt 0:00:11]} 39. Kg2 {[%emt 0:00:09]} Rb8 {[%emt 0:00:15]} 0-1